[Event "1000GM Schev-G4 March 2024"]
[Site "Santa Clara"]
[Date "2024.03.10"]
[Round "4.1"]
[White "Montes Orozco, Miguel Angel"]
[Black "Yao, Hanchi"]
[Result "1-0"]
[ECO "A06"]
[WhiteElo "2152"]
[BlackElo "1997"]
[Annotator "RC"]
[PlyCount "117"]
[EventDate "2024.03.06"]
[EventType "schev"]
[EventCountry "USA"]
[SourceTitle "playchess.com"]
[Source "ChessBase"]
[SourceQuality "1"]
[TimeControl "5400+30"]

1. Nf3 {[%emt 0:00:07]} Nf6 {[%emt 0:04:41]} 2. e3 {[%emt 0:02:18]} e6 {[%emt 0:00:35]} 3. b3 {[%emt 0:00:22]} b6 {[%emt 0:01:06]} 4. c4 {[%emt 0:00:43]} c5 {[%emt 0:00:57]} 5. Bb2 {[%emt 0:00:19]} Bb7 {[%emt 0:00:05]} 6. Be2 {[%emt 0:00:06]} Be7 {[%emt 0:00:05]} 7. Nc3 {[%emt 0:00:58]} O-O {[%emt 0:01:19]} 8. O-O {[%emt 0:00:07]} Nc6 {[%emt 0:00:40]} 9. d4 {[%emt 0:02:25]} d5 {[%emt 0:00:28]} 10. dxc5 {[%emt 0:00:43]} dxc4 {[%emt 0:00:08]} 11. Bxc4 {[%emt 0:01:23]} Bxc5 {[%emt 0:00:14]} 12. Qe2 {[%emt 0:00:02]} Qe7 {[%emt 0:00:53]} 13. e4 {[%emt 0:01:04]} Nd7 {[%emt 0:07:35]} 14. Na4 {[%emt 0:11:02]} Na5 {[%emt 0:01:38]} 15. Bb5 {[%emt 0:01:32]} Rfd8 {[%emt 0:03:05]} 16. Nxc5 {[%emt 0:08:35]} Nxc5 {[%emt 0:03:31]} 17. b4 {[%emt 0:01:39]} a6 {[%emt 0:00:07]} 18. bxc5 {[%emt 0:00:44]} axb5 {[%emt 0:00:07]} 19. cxb6 {[%emt 0:00:02]} Qc5 {[%emt 0:04:32]} 20. Bd4 {[%emt 0:05:51]} Rxd4 {[%emt 0:02:05]} 21. Nxd4 {[%emt 0:00:04]} Qxd4 {[%emt 0:00:04]} 22. Qxb5 {[%emt 0:00:07]} Qxe4 {[%emt 0:00:01]} 23. f3 {[%emt 0:00:06]} Qd4+ {[%emt 0:00:03]} 24. Kh1 {[%emt 0:00:14]} Bc6 {[%emt 0:00:03]} 25. b7 {[%emt 0:02:46]} Bxb7 {[%emt 0:00:30]} 26. Rfd1 {[%emt 0:00:37]} Qc4 {[%emt 0:00:40]} 27. Qxa5 {[%emt 0:00:10]} Qh4 {[%emt 0:03:27]} 28. Qe1 {[%emt 0:02:11]} Qa4 {[%emt 0:00:38]} 29. Rdb1 {[%emt 0:01:16]} Bd5 {[%emt 0:00:06]} 30. Qb4 {[%emt 0:00:03]} Qxb4 {[%emt 0:01:01]} 31. Rxb4 {[%emt 0:00:02]} Kf8 {[%emt 0:00:05]} 32. a4 {[%emt 0:00:09]} Ke7 {[%emt 0:00:30]} 33. Rb6 {[%emt 0:00:18]} Ra5 {[%emt 0:00:51]} 34. Rb5 {[%emt 0:00:26]} Ra7 {[%emt 0:00:05]} 35. a5 {[%emt 0:00:09]} Kd6 {[%emt 0:00:03]} 36. Rc1 {[%emt 0:00:08]} h5 {[%emt 0:03:34]} 37. h4 {[%emt 0:00:44]} g6 {[%emt 0:00:21]} 38. Kh2 {[%emt 0:00:04]} Ke5 {[%emt 0:00:48]} 39. Kg3 {[%emt 0:00:07]} Kf5 {[%emt 0:01:36]} 40. Rc6 {[%emt 0:01:59]} Ke5 {[%emt 0:00:43]} 41. a6 {[%emt 0:01:03]} Kd4 {[%emt 0:02:18]} 42. Rb4+ {[%emt 0:00:12]} Ke5 {[%emt 0:00:10]} 43. Rb5 {[%emt 0:01:49]} Kd4 {[%emt 0:00:26]} 44. Rb7 {[%emt 0:00:40]} Ra8 {[%emt 0:00:35]} 45. Rd7 {[%emt 0:00:02]} Ke5 {[%emt 0:00:23]} 46. Rb6 {[%emt 0:00:10]} f5 {[%emt 0:00:44]} 47. a7 {[%emt 0:00:21]} f4+ {[%emt 0:00:05]} 48. Kf2 {[%emt 0:00:27]} Rc8 {[%emt 0:00:38]} 49. Rxd5+ {[%emt 0:00:35]} exd5 {[%emt 0:00:02]} 50. Rb8 {[%emt 0:00:06]} Rc2+ {[%emt 0:00:03]} 51. Kg1 {[%emt 0:00:03]} Rc1+ {[%emt 0:00:04]} 52. Kh2 {[%emt 0:00:02]} Ra1 {[%emt 0:00:07]} 53. a8=Q {[%emt 0:00:06]} Rxa8 {[%emt 0:00:04]} 54. Rxa8 {[%emt 0:00:03]} Kd4 {[%emt 0:00:08]} 55. Kg1 {[%emt 0:00:10]} Kd3 {[%emt 0:00:19]} 56. Kf2 {[%emt 0:00:04]} d4 {[%emt 0:00:03]} 57. Ra2 {[%emt 0:00:21]} Kc3 {[%emt 0:00:04]} 58. Ke2 {[%emt 0:00:04]} Kb3 {[%emt 0:00:05]} 59. Ra6 {[%emt 0:00:03]} 1-0

[Event "1000GM Schev-G4 March 2024"]
[Site "Santa Clara"]
[Date "2024.03.10"]
[Round "4.2"]
[White "Vittorino, Carlo Giovanni"]
[Black "Karthi, Jashith"]
[Result "1/2-1/2"]
[ECO "C47"]
[WhiteElo "2226"]
[BlackElo "2039"]
[Annotator "RC"]
[PlyCount "47"]
[EventDate "2024.03.06"]
[EventType "schev"]
[EventCountry "USA"]
[SourceTitle "playchess.com"]
[Source "ChessBase"]
[SourceQuality "1"]
[TimeControl "5400+30"]

1. e4 {[%emt 0:00:19]} e5 {[%emt 0:13:15]} 2. a3 {[%emt 0:01:42]} Nf6 {[%emt 0:00:33]} 3. Nc3 {[%emt 0:00:07]} Nc6 {[%emt 0:00:27]} 4. Nf3 {[%emt 0:01:15]} d5 {[%emt 0:00:11]} 5. exd5 {[%emt 0:05:28]} Nxd5 {[%emt 0:00:08]} 6. Bb5 {[%emt 0:00:37]} Nxc3 {[%emt 0:00:50]} 7. bxc3 {[%emt 0:00:05]} Bd6 {[%emt 0:00:12]} 8. d4 {[%emt 0:02:32]} exd4 {[%emt 0:01:38]} 9. cxd4 {[%emt 0:00:02]} O-O {[%emt 0:00:15]} 10. O-O {[%emt 0:00:01]} Bg4 {[%emt 0:01:15]} 11. c3 {[%emt 0:00:31]} Ne7 {[%emt 0:02:12]} 12. h3 {[%emt 0:00:42]} Bh5 {[%emt 0:00:34]} 13. Bg5 {[%emt 0:16:36]} c6 {[%emt 0:01:23]} 14. Bd3 {[%emt 0:02:33]} Qc7 {[%emt 0:01:20]} 15. Bxe7 {[%emt 0:08:00]} Bxe7 {[%emt 0:01:18]} 16. Re1 {[%emt 0:00:43]} Bf6 {[%emt 0:00:29]} 17. Re3 {[%emt 0:07:39]} Bg6 {[%emt 0:14:08]} 18. Bxg6 {[%emt 0:02:19]} hxg6 {[%emt 0:00:06]} 19. Qb3 {[%emt 0:01:29]} Rad8 {[%emt 0:01:08]} 20. Rae1 {[%emt 0:15:03]} Qd7 {[%emt 0:05:45]} 21. Re4 {[%emt 0:09:46]} b5 {[%emt 0:02:07]} 22. Ne5 {[%emt 0:07:25]} Bxe5 {[%emt 0:00:11]} 23. Rxe5 {[%emt 0:06:05]} Rfe8 {[%emt 0:00:12]} 24. Qb4 {[%emt 0:11:31]} 1/2-1/2

[Event "1000GM Schev-G4 March 2024"]
[Site "Santa Clara"]
[Date "2024.03.10"]
[Round "4.3"]
[White "Stevens, Adam B"]
[Black "Kretchetov, Alexandre"]
[Result "0-1"]
[ECO "E11"]
[WhiteElo "1969"]
[BlackElo "2141"]
[Annotator "RC"]
[PlyCount "38"]
[EventDate "2024.03.06"]
[EventType "schev"]
[EventCountry "USA"]
[SourceTitle "playchess.com"]
[Source "ChessBase"]
[SourceQuality "1"]
[TimeControl "5400+30"]

1. d4 {[%emt 0:00:01]} Nf6 {[%emt 0:10:13]} 2. c4 {[%emt 0:00:07]} e6 {[%emt 0:00:49]} 3. Nf3 {[%emt 0:00:06]} d5 {[%emt 0:00:16]} 4. g3 {[%emt 0:00:06]} Bb4+ {[%emt 0:00:07]} 5. Bd2 {[%emt 0:00:09]} Be7 {[%emt 0:00:05]} 6. Bg2 {[%emt 0:00:07]} O-O {[%emt 0:00:06]} 7. O-O {[%emt 0:00:10]} Nbd7 {[%emt 0:00:04]} 8. Qc2 {[%emt 0:00:11]} Ne4 {[%emt 0:00:31]} 9. Be3 {[%emt 0:05:16]} c6 {[%emt 0:01:27]} 10. Nc3 {[%emt 0:02:57]} f5 {[%emt 0:01:38]} 11. Ne1 {[%emt 0:06:11]} Nd6 {[%emt 0:03:05]} 12. c5 {[%emt 0:05:59]} Nf7 {[%emt 0:02:33]} 13. f3 {[%emt 0:01:56]} e5 {[%emt 0:02:32]} 14. dxe5 {[%emt 0:07:34]} Nfxe5 {[%emt 0:01:55]} 15. Rd1 {[%emt 0:01:10]} Nc4 {[%emt 0:06:11]} 16. Bf2 {[%emt 0:03:42]} Bxc5 {[%emt 0:00:52]} 17. Bxc5 {[%emt 0:03:54]} Nxc5 {[%emt 0:00:11]} 18. Qc1 {[%emt 0:02:36]} Qb6 {[%emt 0:02:16]} 19. Kh1 {[%emt 0:00:02]} Qxb2 {[%emt 0:04:36]} 0-1

[Event "1000GM Schev-G4 March 2024"]
[Site "Santa Clara"]
[Date "2024.03.10"]
[Round "4.4"]
[White "Talwalkar, Vedant"]
[Black "Ramirez, Carlos"]
[Result "1/2-1/2"]
[ECO "C07"]
[WhiteElo "1996"]
[BlackElo "2162"]
[Annotator "RC"]
[PlyCount "49"]
[EventDate "2024.03.06"]
[EventType "schev"]
[EventCountry "USA"]
[SourceTitle "playchess.com"]
[Source "ChessBase"]
[SourceQuality "1"]
[TimeControl "5400+30"]

1. e4 {[%emt 0:00:01]} e6 {[%emt 0:02:37]} 2. d4 {[%emt 0:00:10]} d5 {[%emt 0:00:02]} 3. Nd2 {[%emt 0:00:16]} c5 {[%emt 0:00:06]} 4. Ngf3 {[%emt 0:00:02]} cxd4 {[%emt 0:02:38]} 5. exd5 {[%emt 0:00:05]} Qxd5 {[%emt 0:00:16]} 6. Bc4 {[%emt 0:00:03]} Qd6 {[%emt 0:00:07]} 7. O-O {[%emt 0:00:06]} Nf6 {[%emt 0:00:09]} 8. Nb3 {[%emt 0:00:04]} Nc6 {[%emt 0:00:13]} 9. Nbxd4 {[%emt 0:00:06]} Nxd4 {[%emt 0:00:09]} 10. Nxd4 {[%emt 0:00:05]} Qc7 {[%emt 0:00:08]} 11. Bb3 {[%emt 0:00:54]} Bd7 {[%emt 0:01:32]} 12. Re1 {[%emt 0:02:34]} Bd6 {[%emt 0:07:03]} 13. h3 {[%emt 0:00:18]} O-O-O {[%emt 0:04:18]} 14. Qe2 {[%emt 0:03:48]} a6 {[%emt 0:00:10]} 15. c3 {[%emt 0:01:04]} Rhg8 {[%emt 0:01:00]} 16. Nf3 {[%emt 0:03:57]} Bc6 {[%emt 0:00:44]} 17. Ne5 {[%emt 0:02:52]} Be4 {[%emt 0:01:44]} 18. Ng4 {[%emt 0:05:10]} Bc6 {[%emt 0:07:50]} 19. Bg5 {[%emt 0:04:02]} h6 {[%emt 0:07:02]} 20. Bh4 {[%emt 0:02:13]} h5 {[%emt 0:01:57]} 21. Ne5 {[%emt 0:02:29]} Bxe5 {[%emt 0:06:07]} 22. Qxe5 {[%emt 0:00:07]} Qxe5 {[%emt 0:00:23]} 23. Rxe5 {[%emt 0:00:07]} Rd2 {[%emt 0:00:12]} 24. Bg5 {[%emt 0:01:24]} Rd7 {[%emt 0:06:10]} 25. Rae1 {[%emt 0:00:30]} 1/2-1/2

[Event "1000GM Schev-G4 March 2024"]
[Site "Santa Clara"]
[Date "2024.03.10"]
[Round "4.5"]
[White "Jaquez, Juan Manuel"]
[Black "Jasinski, Alexander"]
[Result "1-0"]
[ECO "B08"]
[WhiteElo "2170"]
[BlackElo "1981"]
[Annotator "ChessBase"]
[PlyCount "83"]
[EventDate "2024.03.06"]
[EventType "schev"]
[EventCountry "USA"]
[SourceTitle "playchess.com"]
[Source "ChessBase"]
[SourceQuality "1"]
[TimeControl "5400+30"]

1. e4 {[%emt 0:00:08]} Nc6 {[%emt 0:00:16]} 2. Nf3 {[%emt 0:00:27]} d6 {[%emt 0:00:10]} 3. d4 {[%emt 0:00:25]} Nf6 {[%emt 0:00:14]} 4. Nc3 {[%emt 0:01:03]} g6 {[%emt 0:00:11]} 5. h3 {[%emt 0:02:37]} Bg7 {[%emt 0:00:11]} 6. Be3 {[%emt 0:00:23]} O-O {[%emt 0:00:29]} 7. Qd2 {[%emt 0:01:09]} a6 {[%emt 0:01:13]} 8. Bh6 {[%emt 0:12:31]} b5 {[%emt 0:01:24]} 9. a3 {[%emt 0:00:18]} d5 {[%emt 0:05:06]} 10. Bxg7 {[%emt 0:01:15]} Kxg7 {[%emt 0:00:12]} 11. e5 {[%emt 0:07:38]} Ne4 {[%emt 0:00:36]} 12. Qe3 {[%emt 0:00:03]} f5 {[%emt 0:02:57]} 13. g3 {[%emt 0:08:14]} e6 {[%emt 0:08:30]} 14. h4 {[%emt 0:00:28]} h6 {[%emt 0:04:26]} 15. Bd3 {[%emt 0:23:03]} Qe7 {[%emt 0:03:59]} 16. Ne2 {[%emt 0:03:00]} Na5 {[%emt 0:02:58]} 17. Nh2 {[%emt 0:04:29]} c5 {[%emt 0:01:18]} 18. dxc5 {[%emt 0:08:07]} Nxc5 {[%emt 0:02:52]} 19. b4 {[%emt 0:00:21]} Nxd3+ {[%emt 0:00:28]} 20. cxd3 {[%emt 0:00:04]} Nc6 {[%emt 0:01:21]} 21. O-O {[%emt 0:04:35]} d4 {[%emt 0:03:16]} 22. Nxd4 {[%emt 0:00:29]} Nxd4 {[%emt 0:00:11]} 23. Qxd4 {[%emt 0:00:03]} Rd8 {[%emt 0:00:19]} 24. Qe3 {[%emt 0:03:52]} Bb7 {[%emt 0:01:01]} 25. Rac1 {[%emt 0:00:20]} Rd7 {[%emt 0:01:53]} 26. Rc3 {[%emt 0:01:24]} Rad8 {[%emt 0:01:59]} 27. Rfc1 {[%emt 0:00:16]} g5 {[%emt 0:01:18]} 28. hxg5 {[%emt 0:06:30]} hxg5 {[%emt 0:00:08]} 29. Nf3 {[%emt 0:01:07]} Kg6 {[%emt 0:01:04]} 30. Kf1 {[%emt 0:00:23]} Rh8 {[%emt 0:01:33]} 31. Ke2 {[%emt 0:00:35]} Rh3 {[%emt 0:02:19]} 32. Qb6 {[%emt 0:01:55]} f4 {[%emt 0:03:52]} 33. Nd4 {[%emt 0:00:22]} Bd5 {[%emt 0:10:01]} 34. gxf4 {[%emt 0:00:33]} gxf4 {[%emt 0:00:25]} 35. Rg1+ {[%emt 0:00:09]} Kh7 {[%emt 0:00:43]} 36. Qb8 {[%emt 0:01:14]} f3+ {[%emt 0:00:38]} 37. Kd1 {[%emt 0:00:57]} Be4 {[%emt 0:39:29]} 38. Rc8 {[%emt 0:02:18]} Kh6 {[%emt 0:00:00]} 39. Rh8+ {[%emt 0:00:24]} Bh7 {[%emt 0:00:00]} 40. Qg8 {[%emt 0:00:24]} Qf7 {[%emt 0:00:00]} 41. Rxh7+ {[%emt 0:00:17]} Qxh7 {[%emt 0:00:00]} 42. Qg5# {[%emt 0:00:12]} 1-0

[Event "1000GM Schev-G4 March 2024"]
[Site "Santa Clara"]
[Date "2024.03.11"]
[Round "5.1"]
[White "Yao, Hanchi"]
[Black "Vittorino, Carlo Giovanni"]
[Result "0-1"]
[ECO "E34"]
[WhiteElo "1997"]
[BlackElo "2226"]
[Annotator "TA"]
[PlyCount "100"]
[EventDate "2024.03.06"]
[EventType "schev"]
[EventCountry "USA"]
[SourceTitle "playchess.com"]
[Source "ChessBase"]
[SourceQuality "1"]
[TimeControl "5400+30"]

{[%evp 10,99,6,0,-16,-45,-58,-51,-31,-33,-29,-122,-128,-279,-170,-316,-295,-320,-313,-322,-315,-375,-373,-410,-370,-374,-395,-453,-443,-443,-410,-408,-299,-264,-210,-201,-202,-210,-208,-216,-195,-203,-175,-208,-201,-239,-235,-279,-283,-280,-252,-504,-505,-454,-418,-621,-614,-628,-620,-602,-615,-610,-585,-853,-839,-6311,-6211,-29969,-29970,-29968,-29969,-29968,-29970,-29987,-29988,-29988,-29989,-29989,-29990,-29990,-29991,-29993,-29994,-29997,-29996,-29996,-29996,-29997,-29998,-29998,-29999,-29999]} 1. d4 {[%emt 0:00:28]} Nf6 {[%emt 0:02:07]} 2. c4 {[%emt 0:00:05]} e6 {[%emt 0:00:50]} 3. Nc3 {[%emt 0:00:05]} Bb4 {[%emt 0:00:20]} 4. Qc2 {[%emt 0:00:07]} d5 {[%emt 0:03:27]} 5. Bg5 {[%emt 0:00:45]} h6 {[%emt 0:09:48]} 6. Bh4 {[%emt 0:00:14]} dxc4 {[%emt 0:13:29]} 7. Qa4+ {[%emt 0:06:27]} Nc6 {[%emt 0:00:09]} 8. e3 {[%emt 0:00:17]} Bd7 {[%emt 0:18:16][%cal Oc6d4] aiming for ...Nxd4! Black is slightly better.} 9. Qc2 {[%emt 0:01:24]} b5 {[%emt 0:03:44]} 10. Bxf6 {[%emt 0:03:24]} (10. Nf3 $11) 10... Qxf6 $17 {[%emt 0:05:13]} 11. g3 $2 {[%emt 0:01:44]} (11. Be2 $17) 11... O-O {[%emt 0:02:17] ...e5 is the strong threat.} 12. Bg2 {[%emt 0:00:13]} (12. f4 $142) 12... e5 $19 {[%emt 0:07:24]} 13. d5 {[%emt 0:07:45] [#]} Nd4 {[%emt 0:00:23][%mdl 512]} 14. Qd1 {[%emt 0:01:03] [#]} (14. Qb1 Rad8) 14... Bf5 $1 {[%emt 0:04:50]} 15. e4 {[%emt 0:03:57]} (15. Rc1 Rad8) 15... Bd7 {[%emt 0:01:29]} 16. h3 {[%emt 0:05:57]} c6 {[%emt 0:06:19]} 17. Nf3 {[%emt 0:08:03]} cxd5 {[%emt 0:00:21]} 18. exd5 {[%emt 0:00:47]} Bf5 {[%emt 0:06:51]} 19. O-O {[%emt 0:05:34]} Bc2 {[%emt 0:01:08]} 20. Qc1 {[%emt 0:02:57]} Nxf3+ {[%emt 0:04:18]} 21. Bxf3 {[%emt 0:00:14] White is weak on the dark squares} Qxf3 {[%emt 0:02:40]} 22. Qxc2 {[%emt 0:00:04]} Bxc3 {[%emt 0:00:04]} 23. Qxc3 {[%emt 0:00:06]} Qxd5 {[%emt 0:00:03]} 24. Rad1 {[%emt 0:00:26]} Qc5 {[%emt 0:00:26]} 25. Rfe1 {[%emt 0:01:55]} Rfe8 {[%emt 0:00:35]} 26. Qa5 {[%emt 0:00:19]} e4 {[%emt 0:01:22]} 27. Kg2 {[%emt 0:02:49]} e3 {[%emt 0:00:36] White must now prevent ...Qc6+.} 28. Rxe3 {[%emt 0:00:10]} Rxe3 {[%emt 0:00:04]} 29. fxe3 {[%emt 0:00:04]} Qxe3 {[%emt 0:00:07]} 30. Rd8+ $2 {[%emt 0:00:04]} (30. Qe1 {keeps fighting.} Qxe1 31. Rxe1) 30... Rxd8 {[%emt 0:00:04]} 31. Qxd8+ {[%emt 0:00:06][%mdl 4096] Endgame. KQ-KQ} Kh7 {[%emt 0:00:01] Strongly threatening ...Qe2+.} 32. Qd5 {[%emt 0:00:12]} (32. Qd1 $142) 32... Qe2+ {[%emt 0:00:41]} 33. Kg1 {[%emt 0:00:36]} Qxb2 {[%emt 0:04:55]} 34. Qf5+ {[%emt 0:00:06]} g6 {[%emt 0:00:02]} 35. Qxf7+ {[%emt 0:00:03]} Qg7 {[%emt 0:00:02]} 36. Qf2 {[%emt 0:01:26]} Qc7 {[%emt 0:00:31] Prevents Qc5. Hoping for ...c3.} 37. Kh1 {[%emt 0:00:53]} c3 {[%emt 0:00:10] ( -> ...c2)} 38. Qc2 {[%emt 0:00:27]} Qxg3 {[%emt 0:00:40] Black mates.} 39. Qb3 {[%emt 0:00:09]} Qxh3+ {[%emt 0:00:26]} 40. Kg1 {[%emt 0:00:04]} Qe3+ {[%emt 0:00:26]} 41. Kh1 {[%emt 0:00:07]} Qc1+ {[%emt 0:00:16]} 42. Kh2 {[%emt 0:00:10]} Qb2+ {[%emt 0:00:04]} 43. Kh3 {[%emt 0:00:06]} Qxb3 {[%emt 0:00:04]} 44. axb3 {[%emt 0:00:03] KP-KP} c2 {[%emt 0:00:06]} 45. b4 {[%emt 0:00:01]} c1=Q {[%emt 0:00:06]} 46. Kh4 {[%emt 0:00:02]} Qg5+ {[%emt 0:00:51]} 47. Kh3 {[%emt 0:00:04]} h5 {[%emt 0:00:17]} 48. Kh2 {[%emt 0:00:02]} h4 {[%emt 0:00:08]} 49. Kh1 {[%emt 0:00:05]} h3 {[%emt 0:00:03][%csl Gh3][%cal Rg5g2]} 50. Kh2 {[%emt 0:00:03]} Qg2# {[%emt 0:00:03] Black took control after the opening.   Weighted Error Value: White=0.86/Black=0.14 (very precise) .  Mistake:       	White=5     	---        Inaccurate:     	White=2     	Black=1      OK:         	White=5     	Black=12     Best:        	White=2     	Black=4} 0-1

[Event "1000GM Schev-G4 March 2024"]
[Site "Santa Clara"]
[Date "2024.03.11"]
[Round "5.2"]
[White "Kretchetov, Alexandre"]
[Black "Karthi, Jashith"]
[Result "1-0"]
[ECO "D37"]
[WhiteElo "2141"]
[BlackElo "2039"]
[Annotator "RC"]
[PlyCount "141"]
[EventDate "2024.03.06"]
[EventType "schev"]
[EventCountry "USA"]
[SourceTitle "playchess.com"]
[Source "ChessBase"]
[SourceQuality "1"]
[TimeControl "5400+30"]

1. Nf3 {[%emt 1:31:00]} d5 {[%emt 0:00:06]} 2. d4 {[%emt 0:00:00]} Nf6 {[%emt 0:00:05]} 3. c4 {[%emt 0:00:00]} e6 {[%emt 0:00:04]} 4. Nc3 {[%emt 0:00:00]} a6 {[%emt 0:00:03]} 5. cxd5 {[%emt 0:00:00]} exd5 {[%emt 0:00:09]} 6. Qb3 {[%emt 0:00:00]} c6 {[%emt 0:00:45]} 7. Bg5 {[%emt 0:00:00]} Be7 {[%emt 0:00:14]} 8. e3 {[%emt 0:00:00]} O-O {[%emt 0:00:24]} 9. Bd3 {[%emt 0:00:00]} Qc7 {[%emt 0:00:37]} 10. Qc2 {[%emt 0:00:00]} h6 {[%emt 0:00:38]} 11. Bxf6 {[%emt 0:00:00]} Bxf6 {[%emt 0:00:18]} 12. Nxd5 {[%emt 0:00:00]} Qa5+ {[%emt 0:00:24]} 13. Nc3 {[%emt 0:00:00]} Bg4 {[%emt 0:01:38]} 14. Nd2 {[%emt 0:00:00]} Re8 {[%emt 0:04:10]} 15. O-O {[%emt 0:00:00]} Nd7 {[%emt 0:00:47]} 16. Rac1 {[%emt 0:00:00]} Rac8 {[%emt 0:00:58]} 17. Nc4 {[%emt 0:00:00]} Qc7 {[%emt 0:00:19]} 18. Bh7+ {[%emt 0:00:00]} Kh8 {[%emt 0:00:19]} 19. Bf5 {[%emt 0:00:00]} Bxf5 {[%emt 0:00:14]} 20. Qxf5 {[%emt 0:00:00]} b5 {[%emt 0:02:19]} 21. Nd2 {[%emt 0:00:00]} g6 {[%emt 0:01:51]} 22. Qf3 {[%emt 0:00:00]} Kg7 {[%emt 0:02:16]} 23. Nce4 {[%emt 0:00:00]} Be7 {[%emt 0:04:28]} 24. Nb3 {[%emt 0:00:00]} Qb6 {[%emt 0:01:59]} 25. Nbc5 {[%emt 0:00:00]} Nxc5 {[%emt 0:00:16]} 26. Nxc5 {[%emt 0:00:00]} Bxc5 {[%emt 0:02:31]} 27. Rxc5 {[%emt 0:00:00]} Qa5 {[%emt 0:00:27]} 28. a3 {[%emt 0:00:00]} Re6 {[%emt 0:04:47]} 29. Qe2 {[%emt 0:00:00]} Rd8 {[%emt 0:01:06]} 30. Qc2 {[%emt 0:00:00]} Rdd6 {[%emt 0:00:41]} 31. h3 {[%emt 0:00:00]} Qd8 {[%emt 0:00:48]} 32. Rc1 {[%emt 0:00:00]} a5 {[%emt 0:03:43]} 33. b3 {[%emt 0:00:00]} Qb6 {[%emt 0:00:20]} 34. Qc3 {[%emt 0:00:00]} Kh7 {[%emt 0:01:57]} 35. a4 {[%emt 0:00:00]} b4 {[%emt 0:00:23]} 36. Qc4 {[%emt 0:00:00]} Kg7 {[%emt 0:00:25]} 37. Qd3 {[%emt 0:00:00]} Qa7 {[%emt 0:15:19]} 38. R1c4 {[%emt 0:00:00]} Qa8 {[%emt 0:05:01]} 39. e4 {[%emt 0:00:00]} h5 {[%emt 0:04:42]} 40. e5 {[%emt 0:00:00]} Rd5 {[%emt 0:00:17]} 41. Rxd5 {[%emt 0:00:00]} cxd5 {[%emt 0:00:14]} 42. Rc5 {[%emt 0:00:00]} Rc6 {[%emt 0:00:37]} 43. Qb5 {[%emt 0:00:00]} Rxc5 {[%emt 0:00:17]} 44. Qxc5 {[%emt 0:00:00]} Qd8 {[%emt 0:03:26]} 45. g3 {[%emt 0:00:00]} Kg8 {[%emt 0:00:18]} 46. Kg2 {[%emt 0:00:00]} Kg7 {[%emt 0:00:45]} 47. Qc6 {[%emt 0:00:00]} Kh7 {[%emt 0:01:26]} 48. Qd6 {[%emt 0:00:00]} Qa8 {[%emt 0:01:06]} 49. h4 {[%emt 0:00:00]} Kg8 {[%emt 0:05:22]} 50. Qd7 {[%emt 0:00:00]} Kf8 {[%emt 0:01:44]} 51. Kf3 {[%emt 0:00:00]} Kg8 {[%emt 0:04:44]} 52. Kf4 {[%emt 0:00:00]} Qa6 {[%emt 0:02:32]} 53. Kg5 {[%emt 0:00:00]} Kg7 {[%emt 0:01:41]} 54. Qe7 {[%emt 0:00:00]} Qc8 {[%emt 0:00:57]} 55. Qf6+ {[%emt 0:00:00]} Kg8 {[%emt 0:00:07]} 56. e6 {[%emt 0:00:00]} fxe6 {[%emt 0:04:21]} 57. Qxg6+ {[%emt 0:00:00]} Kf8 {[%emt 0:00:18]} 58. Qf6+ {[%emt 0:00:00]} Kg8 {[%emt 0:00:03]} 59. f4 {[%emt 0:00:00]} Qd7 {[%emt 0:00:44]} 60. Kxh5 {[%emt 0:00:00]} Qh7+ {[%emt 0:00:50]} 61. Qh6 {[%emt 0:00:00]} Qd7 {[%emt 0:00:10]} 62. Qg6+ {[%emt 0:00:00]} Kf8 {[%emt 0:00:12]} 63. Kg5 {[%emt 0:00:00]} Qc8 {[%emt 0:00:26]} 64. Qf6+ {[%emt 0:00:00]} Kg8 {[%emt 0:00:08]} 65. Qe7 {[%emt 0:00:00]} e5 {[%emt 0:00:14]} 66. fxe5 {[%emt 0:01:34]} Kh8 {[%emt 0:00:11]} 67. Qf6+ {[%emt 0:00:33]} Kg8 {[%emt 0:00:10]} 68. e6 {[%emt 0:01:20]} Qc1+ {[%emt 0:00:09]} 69. Qf4 {[%emt 0:00:54]} Qc6 {[%emt 0:01:22]} 70. Qf7+ {[%emt 0:01:08]} Kh8 {[%emt 0:00:07]} 71. Kf6 {[%emt 0:00:38]} 1-0

[Event "1000GM Schev-G4 March 2024"]
[Site "Santa Clara"]
[Date "2024.03.11"]
[Round "5.3"]
[White "Ramirez, Carlos"]
[Black "Stevens, Adam B"]
[Result "1-0"]
[ECO "D97"]
[WhiteElo "2162"]
[BlackElo "1969"]
[Annotator "RC"]
[PlyCount "75"]
[EventDate "2024.03.06"]
[EventType "schev"]
[EventCountry "USA"]
[SourceTitle "playchess.com"]
[Source "ChessBase"]
[SourceQuality "1"]
[TimeControl "5400+30"]

1. Nf3 {[%emt 0:00:08]} Nf6 {[%emt 0:00:23]} 2. d4 {[%emt 0:00:29]} g6 {[%emt 0:00:39]} 3. c4 {[%emt 0:00:11]} Bg7 {[%emt 0:00:13]} 4. Nc3 {[%emt 0:00:01]} d5 {[%emt 0:00:06]} 5. Qb3 {[%emt 0:00:58]} dxc4 {[%emt 0:00:10]} 6. Qxc4 {[%emt 0:00:10]} O-O {[%emt 0:00:07]} 7. e4 {[%emt 0:00:04]} a6 {[%emt 0:00:03]} 8. e5 {[%emt 0:01:26]} b5 {[%emt 0:00:09]} 9. Qb3 {[%emt 0:00:05]} Nfd7 {[%emt 0:00:06]} 10. Be3 {[%emt 0:05:46]} c5 {[%emt 0:07:46]} 11. e6 {[%emt 0:02:51]} c4 {[%emt 0:10:08]} 12. exf7+ {[%emt 0:01:15]} Rxf7 {[%emt 0:01:13]} 13. Qc2 {[%emt 0:01:35]} Nf6 {[%emt 0:07:34]} 14. Ne5 {[%emt 0:02:32]} Rf8 {[%emt 0:03:14]} 15. a4 {[%emt 0:06:09]} Bf5 {[%emt 0:04:23]} 16. Qc1 {[%emt 0:00:53]} Nfd7 {[%emt 0:01:13]} 17. Nxd7 {[%emt 0:07:19]} Qxd7 {[%emt 0:00:36]} 18. axb5 {[%emt 0:00:11]} Bxd4 {[%emt 0:01:11]} 19. Bxc4+ {[%emt 0:00:18]} Be6 {[%emt 0:01:43]} 20. Bxe6+ {[%emt 0:00:36]} Qxe6 {[%emt 0:00:02]} 21. O-O {[%emt 1:08:03]} Bxe3 {[%emt 0:00:38]} 22. Qxe3 {[%emt 0:00:00]} Qxe3 {[%emt 0:01:28]} 23. fxe3 {[%emt 0:00:00]} Rxf1+ {[%emt 0:00:31]} 24. Kxf1 {[%emt 0:00:00]} Ra7 {[%emt 0:01:28]} 25. bxa6 {[%emt 0:00:00]} Kf7 {[%emt 0:00:42]} 26. Ke2 {[%emt 0:00:00]} Rxa6 {[%emt 0:00:58]} 27. Rxa6 {[%emt 0:00:00]} Nxa6 {[%emt 0:00:05]} 28. Kd3 {[%emt 0:00:00]} Kf6 {[%emt 0:03:19]} 29. Kc4 {[%emt 0:00:00]} h5 {[%emt 0:00:35]} 30. b4 {[%emt 0:00:00]} h4 {[%emt 0:00:07]} 31. b5 {[%emt 0:00:00]} Nb8 {[%emt 0:00:12]} 32. Kd5 {[%emt 0:00:00]} h3 {[%emt 0:00:23]} 33. gxh3 {[%emt 0:00:00]} Kg5 {[%emt 0:00:07]} 34. Ke6 {[%emt 0:00:00]} Kh4 {[%emt 0:00:15]} 35. Kxe7 {[%emt 0:00:00]} g5 {[%emt 0:00:14]} 36. Ne4 {[%emt 0:00:00]} Kxh3 {[%emt 0:00:43]} 37. Nxg5+ {[%emt 0:00:00]} Kxh2 {[%emt 0:00:06]} 38. Kd6 {[%emt 0:00:00]} 1-0